[Event "LJ Slovak Open 2022"]
[Site "Liptovsky Jan"]
[Date "2022.06.24"]
[Round "3.27"]
[White "Janouskova, Adela"]
[Black "Gollner, Martin"]
[Result "0-1"]
[ECO "B22"]
[WhiteElo "1498"]
[BlackElo "1585"]
[Annotator "NA RC"]
[PlyCount "88"]
[EventDate "2022.06.23"]
[EventType "swiss"]
[EventCountry "SVK"]
[SourceTitle "playchess.com"]
[Source "ChessBase"]
[SourceQuality "1"]
[TimeControl "3600+30"]

1. e4 {[%emt 0:00:07]} c5 {[%emt 0:00:07]} 2. c3 {[%emt 0:01:05]} e6 {[%emt 0:03:49]} 3. d4 {[%emt 0:01:46]} d5 {[%emt 0:01:07]} 4. exd5 {[%emt 0:01:21]} Qxd5 {[%emt 0:00:50]} 5. Nf3 {[%emt 0:01:14]} Nc6 {[%emt 0:01:44]} 6. Be3 {[%emt 0:01:40]} cxd4 {[%emt 0:02:41]} 7. cxd4 {[%emt 0:00:18]} Nf6 {[%emt 0:01:23]} 8. Nc3 {[%emt 0:01:12]} Qd8 {[%emt 0:02:10]} 9. a3 {[%emt 0:03:38]} Be7 {[%emt 0:02:37]} 10. Bd3 {[%emt 0:00:51]} O-O {[%emt 0:01:10]} 11. O-O {[%emt 0:00:43]} b6 {[%emt 0:02:27]} 12. Bc2 {[%emt 0:02:16]} a5 {[%emt 0:08:48]} 13. h3 {[%emt 0:10:08]} Bb7 {[%emt 0:06:00]} 14. Qd3 {[%emt 0:01:20]} Ba6 {[%emt 0:00:42]} 15. Nb5 {[%emt 0:01:07]} Qd5 {[%emt 0:01:03]} 16. a4 {[%emt 0:03:09]} Nb4 {[%emt 0:00:51]} 17. Qe2 {[%emt 0:01:48]} Bxb5 {[%emt 0:01:03]} 18. axb5 {[%emt 0:00:41]} Nxc2 {[%emt 0:00:07]} 19. Qxc2 {[%emt 0:00:07]} Qxb5 {[%emt 0:00:14]} 20. Rac1 {[%emt 0:00:40]} Nd5 {[%emt 0:05:27]} 21. Ne5 {[%emt 0:01:30]} Nb4 {[%emt 0:06:33]} 22. Qc7 {[%emt 0:03:27]} Rfe8 {[%emt 0:05:25]} 23. Rfd1 {[%emt 0:02:04]} f6 {[%emt 0:01:14]} 24. Nf3 {[%emt 0:01:46]} Nd5 {[%emt 0:03:55]} 25. Qc2 {[%emt 0:00:39]} Rac8 {[%emt 0:00:30]} 26. Qxc8 {[%emt 0:04:36]} Rxc8 {[%emt 0:00:01]} 27. Rxc8+ {[%emt 0:00:07]} Kf7 {[%emt 0:00:12]} 28. Rc2 {[%emt 0:01:00]} Qb3 {[%emt 0:01:25]} 29. Rcd2 {[%emt 0:02:17]} Bb4 {[%emt 0:02:41]} 30. Rd3 {[%emt 0:00:48]} Qxb2 {[%emt 0:00:31]} 31. Nd2 {[%emt 0:04:14]} Nc3 {[%emt 0:01:47]} 32. Nc4 {[%emt 0:01:07]} Qa2 {[%emt 0:02:02]} 33. Nxb6 {[%emt 0:00:55]} Nxd1 {[%emt 0:00:36]} 34. Rxd1 {[%emt 0:00:19]} Ba3 {[%emt 0:02:56]} 35. d5 {[%emt 0:00:42]} exd5 {[%emt 0:02:20]} 36. Nxd5 {[%emt 0:00:15]} Qb3 {[%emt 0:00:46]} 37. Rd2 {[%emt 0:00:41]} Bc1 {[%emt 0:00:30]} 38. Rd4 {[%emt 0:00:30]} Bb2 {[%emt 0:00:31]} 39. Rd2 {[%emt 0:00:11]} a4 {[%emt 0:01:03]} 40. Bc5 {[%emt 0:02:36]} Qc4 {[%emt 0:00:39]} 41. Be3 {[%emt 0:00:30]} a3 {[%emt 0:00:07]} 42. Nf4 {[%emt 0:00:37]} a2 {[%emt 0:00:26]} 43. Rd7+ {[%emt 0:00:27]} Ke8 {[%emt 0:00:03]} 44. Ra7 {[%emt 0:00:43]} a1=Q+ {[%emt 0:00:19]} 0-1

[Event "LJ Slovak Open 2022"]
[Site "Liptovsky Jan"]
[Date "2022.06.24"]
[Round "3.28"]
[White "Haasova, Timea"]
[Black "Mazak, Ryan"]
[Result "1-0"]
[ECO "D05"]
[WhiteElo "1811"]
[BlackElo "1575"]
[Annotator "NA"]
[PlyCount "79"]
[EventDate "2022.06.23"]
[EventType "swiss"]
[EventCountry "SVK"]
[SourceTitle "playchess.com"]
[Source "ChessBase"]
[SourceQuality "1"]
[TimeControl "3600+30"]

1. d4 {[%emt 0:00:08]} Nf6 {[%emt 0:00:09]} 2. Nf3 {[%emt 0:00:10]} d5 {[%emt 0:00:07]} 3. e3 {[%emt 0:00:10]} Bg4 {[%emt 0:00:19]} 4. Bd3 {[%emt 0:00:56]} e6 {[%emt 0:00:51]} 5. c3 {[%emt 0:01:03]} c5 {[%emt 0:01:52]} 6. Nbd2 {[%emt 0:00:52]} Nc6 {[%emt 0:01:33]} 7. O-O {[%emt 0:01:17]} Bd6 {[%emt 0:01:41]} 8. Qa4 {[%emt 0:07:43]} c4 {[%emt 0:00:49]} 9. Bb1 {[%emt 0:04:04]} O-O {[%emt 0:01:53]} 10. h3 {[%emt 0:03:52]} Bh5 {[%emt 0:01:58]} 11. Re1 {[%emt 0:04:46]} Re8 {[%emt 0:01:50]} 12. e4 {[%emt 0:03:34]} Be7 {[%emt 0:03:47]} 13. e5 {[%emt 0:09:04]} Nd7 {[%emt 0:00:17]} 14. Qd1 {[%emt 0:03:18]} Bg6 {[%emt 0:03:07]} 15. Nf1 {[%emt 0:00:32]} Bxb1 {[%emt 0:01:08]} 16. Rxb1 {[%emt 0:00:20]} Nf8 {[%emt 0:01:02]} 17. Ng3 {[%emt 0:01:49]} Ng6 {[%emt 0:00:34]} 18. Be3 {[%emt 0:02:56]} b5 {[%emt 0:02:44]} 19. Nh2 {[%emt 0:02:59]} b4 {[%emt 0:01:07]} 20. f4 {[%emt 0:01:08]} Bh4 {[%emt 0:00:42]} 21. Qf3 {[%emt 0:00:24]} a5 {[%emt 0:01:01]} 22. Bf2 {[%emt 0:00:47]} Nce7 {[%emt 0:00:50]} 23. Nhf1 {[%emt 0:01:16]} Rb8 {[%emt 0:01:17]} 24. f5 {[%emt 0:00:46]} exf5 {[%emt 0:00:26]} 25. Nxf5 {[%emt 0:00:22]} Bxf2+ {[%emt 0:00:42]} 26. Qxf2 {[%emt 0:00:30]} Nxf5 {[%emt 0:00:35]} 27. Qxf5 {[%emt 0:00:09]} Re6 {[%emt 0:00:59]} 28. Ng3 {[%emt 0:00:54]} Reb6 {[%emt 0:02:36]} 29. e6 {[%emt 0:03:04]} fxe6 {[%emt 0:01:15]} 30. Rxe6 {[%emt 0:00:17]} Rxe6 {[%emt 0:00:26]} 31. Qxe6+ {[%emt 0:00:05]} Kh8 {[%emt 0:00:16]} 32. Re1 {[%emt 0:01:00]} Nf4 {[%emt 0:00:45]} 33. Qg4 {[%emt 0:01:38]} Nd3 {[%emt 0:00:54]} 34. Re2 {[%emt 0:01:14]} Qc8 {[%emt 0:00:55]} 35. Qg5 {[%emt 0:01:04]} Qd8 {[%emt 0:00:29]} 36. Re7 {[%emt 0:01:51]} Qf8 {[%emt 0:01:13]} 37. Nf5 {[%emt 0:01:51]} g6 {[%emt 0:01:10]} 38. Qh4 {[%emt 0:01:34]} h5 {[%emt 0:01:20]} 39. Qg5 {[%emt 0:01:10]} Rb6 {[%emt 0:02:15]} 40. Re8 {[%emt 0:01:23]} 1-0

[Event "LJ Slovak Open 2022"]
[Site "Liptovsky Jan"]
[Date "2022.06.24"]
[Round "3.29"]
[White "Ropovik, Samuel"]
[Black "Kukan, Michal"]
[Result "1-0"]
[ECO "B01"]
[WhiteElo "1453"]
[BlackElo "1767"]
[Annotator "NA RC"]
[PlyCount "40"]
[EventDate "2022.06.23"]
[EventType "swiss"]
[EventCountry "SVK"]
[SourceTitle "playchess.com"]
[Source "ChessBase"]
[SourceQuality "1"]
[TimeControl "3600+30"]

1. e4 {[%emt 0:00:04]} d5 {[%emt 0:00:16]} 2. exd5 {[%emt 0:00:11]} Qxd5 {[%emt 0:00:19]} 3. Nc3 {[%emt 0:00:13]} Qd6 {[%emt 0:00:10]} 4. d4 {[%emt 0:00:55]} Nf6 {[%emt 0:00:27]} 5. Nf3 {[%emt 0:00:39]} c6 {[%emt 0:00:26]} 6. g3 {[%emt 0:01:04]} Bg4 {[%emt 0:00:29]} 7. Bg2 {[%emt 0:00:28]} Nd5 {[%emt 0:05:55]} 8. O-O {[%emt 0:04:06]} g6 {[%emt 0:00:30]} 9. h3 {[%emt 0:03:53]} Bf5 {[%emt 0:00:49]} 10. Qe2 {[%emt 0:03:17]} Bg7 {[%emt 0:03:23]} 11. Re1 {[%emt 0:12:53]} Bf6 {[%emt 0:07:32]} 12. Bh6 {[%emt 0:02:55]} Nd7 {[%emt 0:19:54]} 13. g4 {[%emt 0:04:16]} Nxc3 {[%emt 0:03:26]} 14. bxc3 {[%emt 0:01:51]} Be6 {[%emt 0:01:16]} 15. g5 {[%emt 0:07:49]} Qf4 {[%emt 0:00:41]} 16. Qe3 {[%emt 0:07:39]} Qxe3 {[%emt 0:18:06]} 17. fxe3 {[%emt 0:13:00]} Bxd4 {[%emt 0:03:24]} 18. cxd4 {[%emt 0:04:17]} Rg8 {[%emt 0:02:27]} 19. Nd2 {[%emt 0:00:30]} Nb6 {[%emt 0:00:30]} 20. Nb3 {[%emt 0:00:30]} Nc4 {[%emt 0:00:30]} 1-0

[Event "LJ Slovak Open 2022"]
[Site "Liptovsky Jan"]
[Date "2022.06.24"]
[Round "3.30"]
[White "Vastik, Tomas"]
[Black "Verba, Vladimir"]
[Result "0-1"]
[ECO "B13"]
[WhiteElo "1457"]
[BlackElo "1786"]
[Annotator "NA RC"]
[PlyCount "70"]
[EventDate "2022.06.23"]
[EventType "swiss"]
[EventCountry "SVK"]
[SourceTitle "playchess.com"]
[Source "ChessBase"]
[SourceQuality "1"]
[TimeControl "3600+30"]

1. e4 {[%emt 0:00:05]} c6 {[%emt 0:00:26]} 2. Nc3 {[%emt 0:00:18]} d5 {[%emt 0:00:31]} 3. exd5 {[%emt 0:00:06]} cxd5 {[%emt 0:00:16]} 4. d4 {[%emt 0:00:18]} Nc6 {[%emt 0:01:14]} 5. h3 {[%emt 0:00:34]} e6 {[%emt 0:01:26]} 6. Nf3 {[%emt 0:00:50]} Bd6 {[%emt 0:02:40]} 7. a3 {[%emt 0:00:56]} a6 {[%emt 0:01:56]} 8. Be2 {[%emt 0:00:37]} Qc7 {[%emt 0:00:40]} 9. O-O {[%emt 0:01:13]} Nge7 {[%emt 0:00:23]} 10. Re1 {[%emt 0:01:04]} Bd7 {[%emt 0:02:31]} 11. Be3 {[%emt 0:01:13]} O-O {[%emt 0:02:32]} 12. Qd2 {[%emt 0:01:56]} f6 {[%emt 0:04:54]} 13. Na2 {[%emt 0:01:21]} b5 {[%emt 0:05:24]} 14. c3 {[%emt 0:00:56]} Be8 {[%emt 0:08:35]} 15. Qd1 {[%emt 0:02:20]} Rd8 {[%emt 0:02:54]} 16. Nd2 {[%emt 0:00:20]} e5 {[%emt 0:01:17]} 17. Nb3 {[%emt 0:00:34]} Nf5 {[%emt 0:03:20]} 18. Bg4 {[%emt 0:04:03]} Nxe3 {[%emt 0:01:10]} 19. Rxe3 {[%emt 0:01:16]} f5 {[%emt 0:00:34]} 20. Be2 {[%emt 0:06:49]} f4 {[%emt 0:00:38]} 21. Rd3 {[%emt 0:00:54]} e4 {[%emt 0:00:59]} 22. Rd2 {[%emt 0:00:55]} e3 {[%emt 0:02:40]} 23. fxe3 {[%emt 0:00:33]} fxe3 {[%emt 0:00:09]} 24. Rc2 {[%emt 0:01:20]} Bg3 {[%emt 0:04:57]} 25. Bf3 {[%emt 0:01:05]} Bf2+ {[%emt 0:01:10]} 26. Kh1 {[%emt 0:00:38]} Qg3 {[%emt 0:00:33]} 27. Nc5 {[%emt 0:02:02]} Rf6 {[%emt 0:00:54]} 28. Bxd5+ {[%emt 0:03:23]} Rxd5 {[%emt 0:01:18]} 29. Ne4 {[%emt 0:00:22]} Qh4 {[%emt 0:03:05]} 30. Nxf6+ {[%emt 0:00:15]} gxf6 {[%emt 0:00:28]} 31. Qf3 {[%emt 0:05:40]} Ne7 {[%emt 0:02:24]} 32. Nb4 {[%emt 0:03:20]} Bh5 {[%emt 0:03:57]} 33. g4 {[%emt 0:02:41]} Rf5 {[%emt 0:01:10]} 34. Qg2 {[%emt 0:02:14]} Rg5 {[%emt 0:00:15]} 35. Qh2 {[%emt 0:04:12]} Bg3 {[%emt 0:02:39]} 0-1

[Event "LJ Slovak Open 2022"]
[Site "Liptovsky Jan"]
[Date "2022.06.24"]
[Round "3.31"]
[White "Miciak, Emanuel"]
[Black "Bohacek, Ludovit"]
[Result "1/2-1/2"]
[ECO "E87"]
[WhiteElo "1804"]
[BlackElo "1594"]
[Annotator "NA RC"]
[PlyCount "54"]
[EventDate "2022.06.23"]
[EventType "swiss"]
[EventCountry "SVK"]
[SourceTitle "playchess.com"]
[Source "ChessBase"]
[SourceQuality "1"]
[TimeControl "3600+30"]

1. d4 {[%emt 0:00:07]} Nf6 {[%emt 0:00:24]} 2. c4 {[%emt 0:00:17]} g6 {[%emt 0:00:20]} 3. Nc3 {[%emt 0:00:26]} Bg7 {[%emt 0:01:02]} 4. e4 {[%emt 0:01:07]} d6 {[%emt 0:00:37]} 5. f3 {[%emt 0:01:14]} O-O {[%emt 0:03:16]} 6. Be3 {[%emt 0:00:30]} Nbd7 {[%emt 0:00:30]} 7. Bd3 {[%emt 0:01:42]} e5 {[%emt 0:00:21]} 8. d5 {[%emt 0:01:55]} Nh5 {[%emt 0:01:28]} 9. Nge2 {[%emt 0:01:27]} Nc5 {[%emt 0:00:21]} 10. Bc2 {[%emt 0:03:21]} b6 {[%emt 0:00:43]} 11. b4 {[%emt 0:04:46]} Nb7 {[%emt 0:56:58]} 12. O-O {[%emt 0:49:38]} a5 {[%emt 0:00:30]} 13. a3 {[%emt 0:00:30]} Nf6 {[%emt 0:00:30]} 14. Qd2 {[%emt 0:00:30]} Bd7 {[%emt 0:00:30]} 15. Rfc1 {[%emt 0:00:30]} Ne8 {[%emt 0:00:30]} 16. Ba4 {[%emt 0:00:30]} axb4 {[%emt 0:00:30]} 17. axb4 {[%emt 0:00:30]} Bxa4 {[%emt 0:00:30]} 18. Rxa4 {[%emt 0:00:30]} Rxa4 {[%emt 0:00:30]} 19. Nxa4 {[%emt 0:00:30]} f5 {[%emt 0:00:30]} 20. exf5 {[%emt 0:00:30]} Rxf5 {[%emt 0:00:30]} 21. Ng3 {[%emt 0:00:30]} Rf8 {[%emt 0:00:30]} 22. c5 {[%emt 0:00:30]} Qa8 {[%emt 0:00:30]} 23. Qd1 {[%emt 0:00:30]} bxc5 {[%emt 0:00:30]} 24. bxc5 {[%emt 0:00:30]} dxc5 {[%emt 0:00:30]} 25. Nxc5 {[%emt 0:00:30]} Nxc5 {[%emt 0:00:30]} 26. Rxc5 {[%emt 0:00:30]} Qa3 {[%emt 0:00:30]} 27. Qc1 {[%emt 0:00:30]} Qd3 {[%emt 0:00:30]} 1/2-1/2

[Event "LJ Slovak Open 2022"]
[Site "Liptovsky Jan"]
[Date "2022.06.24"]
[Round "3.32"]
[White "Hlavac, Tomas"]
[Black "Recky, Norbert"]
[Result "1/2-1/2"]
[ECO "B31"]
[WhiteElo "1409"]
[BlackElo "1755"]
[Annotator "NA RC"]
[PlyCount "40"]
[EventDate "2022.06.23"]
[EventType "swiss"]
[EventCountry "SVK"]
[SourceTitle "playchess.com"]
[Source "ChessBase"]
[SourceQuality "1"]
[TimeControl "3600+30"]

1. e4 {[%emt 0:00:08]} c5 {[%emt 0:00:07]} 2. Nf3 {[%emt 0:00:17]} d6 {[%emt 0:00:05]} 3. Bb5+ {[%emt 0:00:15]} Nc6 {[%emt 0:00:25]} 4. Bxc6+ {[%emt 0:00:11]} bxc6 {[%emt 0:00:09]} 5. O-O {[%emt 0:00:08]} e5 {[%emt 0:00:22]} 6. Re1 {[%emt 0:00:22]} g6 {[%emt 0:01:17]} 7. d3 {[%emt 0:01:30]} Bg7 {[%emt 0:00:07]} 8. Nbd2 {[%emt 0:00:21]} Ne7 {[%emt 0:00:33]} 9. Nc4 {[%emt 0:00:47]} O-O {[%emt 0:00:23]} 10. Bg5 {[%emt 0:00:22]} f6 {[%emt 0:00:22]} 11. Bh4 {[%emt 0:01:27]} g5 {[%emt 0:01:26]} 12. Bg3 {[%emt 0:00:11]} Bg4 {[%emt 0:03:46]} 13. h3 {[%emt 0:00:46]} Bh5 {[%emt 0:00:07]} 14. Ne3 {[%emt 0:07:15]} f5 {[%emt 0:02:38]} 15. exf5 {[%emt 0:02:59]} Nxf5 {[%emt 0:00:23]} 16. Nxf5 {[%emt 0:01:13]} Rxf5 {[%emt 0:00:17]} 17. Re3 {[%emt 0:11:56]} Qf6 {[%emt 0:00:36]} 18. Qd2 {[%emt 0:03:21]} Bxf3 {[%emt 0:01:47]} 19. gxf3 {[%emt 0:00:09]} Bh6 {[%emt 0:00:40]} 20. Qe2 {[%emt 0:04:23]} Rf8 {[%emt 0:04:03]} 1/2-1/2

[Event "LJ Slovak Open 2022"]
[Site "Liptovsky Jan"]
[Date "2022.06.24"]
[Round "3.33"]
[White "Smetana, Peter"]
[Black "Skutil, Frantisek Elias"]
[Result "1-0"]
[ECO "B53"]
[WhiteElo "1740"]
[BlackElo "1552"]
[Annotator "NA RC"]
[PlyCount "63"]
[EventDate "2022.06.23"]
[EventType "swiss"]
[EventCountry "SVK"]
[SourceTitle "playchess.com"]
[Source "ChessBase"]
[SourceQuality "1"]
[TimeControl "3600+30"]

1. e4 {[%emt 0:00:24]} c5 {[%emt 0:00:16]} 2. Nf3 {[%emt 0:00:28]} d6 {[%emt 0:00:27]} 3. d4 {[%emt 0:00:38]} cxd4 {[%emt 0:00:07]} 4. Qxd4 {[%emt 0:00:33]} Nc6 {[%emt 0:01:09]} 5. Bb5 {[%emt 0:00:57]} Bd7 {[%emt 0:01:03]} 6. Bxc6 {[%emt 0:00:30]} Bxc6 {[%emt 0:00:11]} 7. Nc3 {[%emt 0:01:37]} Nf6 {[%emt 0:00:41]} 8. Bg5 {[%emt 0:00:25]} e6 {[%emt 0:08:51]} 9. O-O-O {[%emt 0:00:46]} Be7 {[%emt 0:05:09]} 10. Qd3 {[%emt 0:01:29]} O-O {[%emt 0:05:56]} 11. Nd4 {[%emt 0:01:46]} Rc8 {[%emt 0:02:45]} 12. f4 {[%emt 0:01:18]} Ng4 {[%emt 0:02:30]} 13. Bxe7 {[%emt 0:00:38]} Qxe7 {[%emt 0:00:15]} 14. Qf3 {[%emt 0:05:38]} Nf6 {[%emt 0:00:27]} 15. Kb1 {[%emt 0:01:39]} Qc7 {[%emt 0:02:01]} 16. Rd2 {[%emt 0:01:43]} d5 {[%emt 0:02:26]} 17. e5 {[%emt 0:00:57]} Nd7 {[%emt 0:01:33]} 18. g4 {[%emt 0:01:34]} Rfe8 {[%emt 0:03:59]} 19. Rhd1 {[%emt 0:07:52]} f6 {[%emt 0:02:09]} 20. Ndb5 {[%emt 0:10:54]} d4 {[%emt 0:04:23]} 21. Qe2 {[%emt 0:04:06]} Qb6 {[%emt 0:00:28]} 22. Nxd4 {[%emt 0:01:07]} Rcd8 {[%emt 0:00:50]} 23. Nxc6 {[%emt 0:01:17]} Qxc6 {[%emt 0:00:22]} 24. Rd6 {[%emt 0:00:41]} Qc7 {[%emt 0:01:14]} 25. Nb5 {[%emt 0:00:42]} Qc8 {[%emt 0:00:38]} 26. Nxa7 {[%emt 0:00:21]} Qc7 {[%emt 0:00:25]} 27. Nb5 {[%emt 0:01:11]} Qc8 {[%emt 0:00:45]} 28. Qd2 {[%emt 0:01:39]} Re7 {[%emt 0:00:40]} 29. Nc3 {[%emt 0:00:42]} Kf8 {[%emt 0:01:23]} 30. Ne4 {[%emt 0:03:05]} Kf7 {[%emt 0:00:47]} 31. exf6 {[%emt 0:00:57]} gxf6 {[%emt 0:00:14]} 32. g5 {[%emt 0:00:20]} 1-0

[Event "LJ Slovak Open 2022"]
[Site "Liptovsky Jan"]
[Date "2022.06.24"]
[Round "3.34"]
[White "Mirowska, Oliwia"]
[Black "Bilik, Matej"]
[Result "1-0"]
[ECO "A03"]
[WhiteElo "1746"]
[BlackElo "1553"]
[Annotator "NA RC"]
[PlyCount "85"]
[EventDate "2022.06.23"]
[EventType "swiss"]
[EventCountry "SVK"]
[SourceTitle "playchess.com"]
[Source "ChessBase"]
[SourceQuality "1"]
[TimeControl "3600+30"]

1. f4 {[%emt 0:00:10]} d5 {[%emt 0:00:14]} 2. Nf3 {[%emt 0:00:10]} g6 {[%emt 0:01:36]} 3. g3 {[%emt 0:00:05]} Bg7 {[%emt 0:00:10]} 4. Bg2 {[%emt 0:00:06]} Nh6 {[%emt 0:01:43]} 5. d4 {[%emt 0:00:37]} Nf5 {[%emt 0:01:38]} 6. c3 {[%emt 0:00:32]} b6 {[%emt 0:04:12]} 7. O-O {[%emt 0:00:52]} e6 {[%emt 0:01:30]} 8. Ne5 {[%emt 0:01:27]} Bb7 {[%emt 0:01:19]} 9. Na3 {[%emt 0:03:36]} f6 {[%emt 0:02:34]} 10. Nf3 {[%emt 0:01:26]} Nd7 {[%emt 0:01:22]} 11. Nc2 {[%emt 0:01:06]} Rc8 {[%emt 0:01:06]} 12. Nd2 {[%emt 0:03:32]} Nd6 {[%emt 0:03:35]} 13. Re1 {[%emt 0:04:07]} Ne4 {[%emt 0:02:25]} 14. Nxe4 {[%emt 0:03:52]} dxe4 {[%emt 0:00:12]} 15. Ne3 {[%emt 0:01:12]} O-O {[%emt 0:05:21]} 16. b4 {[%emt 0:07:05]} e5 {[%emt 0:05:06]} 17. f5 {[%emt 0:01:11]} exd4 {[%emt 0:02:19]} 18. cxd4 {[%emt 0:00:28]} Qe7 {[%emt 0:01:35]} 19. a3 {[%emt 0:02:04]} Rfd8 {[%emt 0:01:33]} 20. Qc2 {[%emt 0:01:07]} c5 {[%emt 0:01:41]} 21. bxc5 {[%emt 0:01:13]} bxc5 {[%emt 0:01:16]} 22. Qb3+ {[%emt 0:01:34]} Kh8 {[%emt 0:06:40]} 23. Qxb7 {[%emt 0:00:19]} cxd4 {[%emt 0:00:27]} 24. Nd5 {[%emt 0:07:52]} Qc5 {[%emt 0:05:17]} 25. Bxe4 {[%emt 0:01:08]} gxf5 {[%emt 0:01:10]} 26. Bg2 {[%emt 0:00:28]} Ne5 {[%emt 0:02:05]} 27. Bf4 {[%emt 0:01:45]} Rb8 {[%emt 0:01:26]} 28. Qc7 {[%emt 0:00:43]} Qxc7 {[%emt 0:01:20]} 29. Nxc7 {[%emt 0:00:07]} Ng6 {[%emt 0:02:03]} 30. Ne6 {[%emt 0:01:33]} Nxf4 {[%emt 0:00:29]} 31. gxf4 {[%emt 0:00:28]} Rd7 {[%emt 0:01:06]} 32. Rab1 {[%emt 0:00:50]} Rg8 {[%emt 0:00:40]} 33. Kf2 {[%emt 0:01:36]} Bh6 {[%emt 0:01:32]} 34. Rb5 {[%emt 0:02:12]} Rd6 {[%emt 0:01:06]} 35. Bd5 {[%emt 0:01:16]} Re8 {[%emt 0:04:30]} 36. Nxd4 {[%emt 0:04:49]} Red8 {[%emt 0:04:17]} 37. Nxf5 {[%emt 0:00:56]} Rxd5 {[%emt 0:00:08]} 38. Rxd5 {[%emt 0:00:08]} Rxd5 {[%emt 0:00:13]} 39. Nxh6 {[%emt 0:00:14]} Rh5 {[%emt 0:00:10]} 40. Ng4 {[%emt 0:00:40]} f5 {[%emt 0:00:09]} 41. Ne5 {[%emt 0:00:28]} Rxh2+ {[%emt 0:00:18]} 42. Kg3 {[%emt 0:00:18]} Rh5 {[%emt 0:00:26]} 43. Rc1 {[%emt 0:00:18]} 1-0

[Event "LJ Slovak Open 2022"]
[Site "Liptovsky Jan"]
[Date "2022.06.24"]
[Round "3.35"]
[White "Zelenka, Matej"]
[Black "Zeman, Jan"]
[Result "0-1"]
[ECO "B56"]
[WhiteElo "1400"]
[BlackElo "1726"]
[Annotator "NA RC"]
[PlyCount "66"]
[EventDate "2022.06.23"]
[EventType "swiss"]
[EventCountry "SVK"]
[SourceTitle "playchess.com"]
[Source "ChessBase"]
[SourceQuality "1"]
[TimeControl "3600+30"]

1. e4 {[%emt 0:00:06]} c5 {[%emt 0:00:50]} 2. Nf3 {[%emt 0:00:15]} Nc6 {[%emt 0:00:10]} 3. d4 {[%emt 0:00:21]} cxd4 {[%emt 0:00:12]} 4. Nxd4 {[%emt 0:00:05]} d6 {[%emt 0:00:20]} 5. Nc3 {[%emt 0:00:12]} Nf6 {[%emt 0:00:44]} 6. Be3 {[%emt 0:00:22]} Ng4 {[%emt 0:00:47]} 7. Qd2 {[%emt 0:00:32]} Nxe3 {[%emt 0:00:20]} 8. Qxe3 {[%emt 0:00:10]} Bd7 {[%emt 0:00:52]} 9. Bc4 {[%emt 0:00:21]} e6 {[%emt 0:01:39]} 10. O-O {[%emt 0:00:15]} Be7 {[%emt 0:00:59]} 11. Kh1 {[%emt 0:00:11]} O-O {[%emt 0:01:14]} 12. f4 {[%emt 0:00:09]} Bf6 {[%emt 0:01:20]} 13. Nxc6 {[%emt 0:00:36]} Bxc6 {[%emt 0:00:30]} 14. Rfe1 {[%emt 0:02:37]} Qc7 {[%emt 0:00:40]} 15. Rad1 {[%emt 0:00:54]} a6 {[%emt 0:00:18]} 16. e5 {[%emt 0:00:51]} Be7 {[%emt 0:00:39]} 17. Rd3 {[%emt 0:01:55]} d5 {[%emt 0:00:47]} 18. Bb3 {[%emt 0:00:29]} b5 {[%emt 0:00:28]} 19. a3 {[%emt 0:01:20]} Bb7 {[%emt 0:00:12]} 20. Na2 {[%emt 0:01:19]} a5 {[%emt 0:00:49]} 21. c3 {[%emt 0:00:09]} Rac8 {[%emt 0:03:16]} 22. Bc2 {[%emt 0:00:51]} b4 {[%emt 0:01:28]} 23. axb4 {[%emt 0:00:45]} axb4 {[%emt 0:00:01]} 24. Qh3 {[%emt 0:00:16]} g6 {[%emt 0:00:20]} 25. Rd2 {[%emt 0:02:27]} bxc3 {[%emt 0:00:14]} 26. Nxc3 {[%emt 0:00:33]} Bb4 {[%emt 0:01:00]} 27. Nb5 {[%emt 0:08:49]} Qa5 {[%emt 0:01:18]} 28. f5 {[%emt 0:12:46]} exf5 {[%emt 0:00:56]} 29. Bxf5 {[%emt 0:01:04]} Bxd2 {[%emt 0:02:18]} 30. e6 {[%emt 0:10:25]} Bxe1 {[%emt 0:02:55]} 31. exf7+ {[%emt 0:00:22]} Kg7 {[%emt 0:01:09]} 32. Qe3 {[%emt 0:06:17]} Bh4 {[%emt 0:01:08]} 33. Nc3 {[%emt 0:01:11]} Rxc3 {[%emt 0:01:01]} 0-1

[Event "LJ Slovak Open 2022"]
[Site "Liptovsky Jan"]
[Date "2022.06.24"]
[Round "3.36"]
[White "Szaszak, Robert"]
[Black "Szaszak, Lukas"]
[Result "1/2-1/2"]
[ECO "B01"]
[WhiteElo "1717"]
[BlackElo "1454"]
[Annotator "NA RC"]
[PlyCount "105"]
[EventDate "2022.06.23"]
[EventType "swiss"]
[EventCountry "SVK"]
[SourceTitle "playchess.com"]
[Source "ChessBase"]
[SourceQuality "1"]
[TimeControl "3600+30"]

1. e4 {[%emt 0:00:07]} d5 {[%emt 0:00:17]} 2. exd5 {[%emt 0:00:22]} Qxd5 {[%emt 0:00:17]} 3. Nc3 {[%emt 0:00:08]} Qa5 {[%emt 0:00:16]} 4. Bc4 {[%emt 0:01:29]} Nf6 {[%emt 0:00:27]} 5. d3 {[%emt 0:00:28]} Bf5 {[%emt 0:00:54]} 6. Qf3 {[%emt 0:00:43]} c6 {[%emt 0:00:58]} 7. h3 {[%emt 0:00:43]} e6 {[%emt 0:00:50]} 8. Bd2 {[%emt 0:00:20]} Qc7 {[%emt 0:01:04]} 9. a3 {[%emt 0:00:35]} Nbd7 {[%emt 0:00:26]} 10. Ba2 {[%emt 0:01:46]} Bd6 {[%emt 0:02:55]} 11. O-O-O {[%emt 0:01:20]} O-O-O {[%emt 0:00:21]} 12. Nge2 {[%emt 0:01:32]} Qb6 {[%emt 0:01:49]} 13. Be3 {[%emt 0:02:45]} Qc7 {[%emt 0:01:08]} 14. Nd4 {[%emt 0:01:10]} Bg6 {[%emt 0:01:49]} 15. Ndb5 {[%emt 0:01:55]} cxb5 {[%emt 0:03:26]} 16. Nxb5 {[%emt 0:00:25]} Ne5 {[%emt 0:00:11]} 17. Qe2 {[%emt 0:00:33]} Qa5 {[%emt 0:04:41]} 18. Nxd6+ {[%emt 0:02:05]} Rxd6 {[%emt 0:00:21]} 19. Bf4 {[%emt 0:00:12]} Nfd7 {[%emt 0:03:12]} 20. Bb3 {[%emt 0:03:52]} Qc5 {[%emt 0:01:26]} 21. Kb1 {[%emt 0:01:16]} a5 {[%emt 0:03:25]} 22. Rd2 {[%emt 0:00:51]} Qd4 {[%emt 0:05:18]} 23. Be3 {[%emt 0:01:14]} Qh4 {[%emt 0:00:31]} 24. g3 {[%emt 0:00:50]} Qf6 {[%emt 0:02:48]} 25. Bf4 {[%emt 0:00:51]} Rd4 {[%emt 0:00:31]} 26. Be3 {[%emt 0:01:16]} Rd6 {[%emt 0:01:30]} 27. Bf4 {[%emt 0:01:52]} Rd4 {[%emt 0:00:10]} 28. Qe3 {[%emt 0:02:44]} Nc6 {[%emt 0:03:07]} 29. c3 {[%emt 0:00:17]} Rxf4 {[%emt 0:00:40]} 30. gxf4 {[%emt 0:00:56]} b5 {[%emt 0:01:32]} 31. Rc1 {[%emt 0:01:50]} Kb7 {[%emt 0:01:13]} 32. Bd1 {[%emt 0:00:19]} e5 {[%emt 0:02:15]} 33. fxe5 {[%emt 0:00:39]} Ndxe5 {[%emt 0:00:13]} 34. Ka1 {[%emt 0:00:38]} Rd8 {[%emt 0:02:42]} 35. Be2 {[%emt 0:00:21]} Qe6 {[%emt 0:03:19]} 36. Qc5 {[%emt 0:00:27]} Qd5 {[%emt 0:01:09]} 37. Qxd5 {[%emt 0:01:51]} Rxd5 {[%emt 0:00:06]} 38. d4 {[%emt 0:00:18]} Nc4 {[%emt 0:00:41]} 39. Rdd1 {[%emt 0:00:43]} Bh5 {[%emt 0:01:02]} 40. Bxc4 {[%emt 0:00:19]} bxc4 {[%emt 0:00:15]} 41. Re1 {[%emt 0:00:40]} Rf5 {[%emt 0:00:36]} 42. Rc2 {[%emt 0:00:14]} Rf3 {[%emt 0:00:47]} 43. d5 {[%emt 0:00:32]} Nb8 {[%emt 0:01:16]} 44. Re7+ {[%emt 0:00:33]} Kb6 {[%emt 0:00:19]} 45. Re3 {[%emt 0:01:29]} Rf5 {[%emt 0:00:20]} 46. Rd2 {[%emt 0:00:09]} Bf3 {[%emt 0:01:57]} 47. d6 {[%emt 0:00:19]} Nd7 {[%emt 0:00:38]} 48. Rd4 {[%emt 0:00:32]} Kc5 {[%emt 0:00:38]} 49. Re7 {[%emt 0:00:31]} Bc6 {[%emt 0:00:17]} 50. f4 {[%emt 0:00:16]} a4 {[%emt 0:01:15]} 51. Kb1 {[%emt 0:01:08]} h5 {[%emt 0:00:56]} 52. Kc1 {[%emt 0:00:27]} g6 {[%emt 0:00:34]} 53. Kd2 {[%emt 0:00:39]} 1/2-1/2